bitfinex/quotes_BTCUSD_20251219
["timestamp","ask_amount","ask_price","bid_price","bid_amount"]
[1766173780415,0.00572,88119.0,88111.0,0.01]
[1766173780625,0.7749136,88130.0,88105.0,0.00572]
[1766173780626,0.00572,88131.0,88112.0,0.01]
[1766173780922,0.00572,88131.0,88106.0,0.01]
[1766173780923,0.7739136,88122.0,88106.0,0.01]
[1766173781146,0.7749136,88116.0,88097.0,0.01]
[1766173781355,0.02388046,88117.0,88099.0,0.60606]
[1766173781583,0.02388046,88117.0,88100.0,1.07439]
[1766173782046,0.59196,88116.0,88100.0,1.07439]
[1766173783076,1.04834,88116.0,88100.0,1.07439]
[1766173783275,0.02388046,88117.0,88100.0,1.07439]
[1766173783930,1.04834,88116.0,88101.0,0.59606]
[1766173784080,1.04834,88116.0,88102.0,0.01]
[1766173784271,0.02388046,88117.0,88104.0,0.01]
[1766173784272,0.00572,88117.0,88104.0,0.01]
[1766173784497,0.00572,88117.0,88101.0,0.01]
[1766173784698,0.00572,88117.0,88099.0,0.01]
[1766173785454,1e-06,88117.0,88099.0,0.01]
[1766173785813,0.0055687,88120.0,88112.0,1.07439]
[1766173786831,0.00572,88121.0,88112.0,1.07439]
[1766173787039,0.00582794,88121.0,88112.0,1.07439]
[1766173788862,0.00582794,88121.0,88104.0,0.00572]
[1766173789021,0.00582794,88121.0,88106.0,1.07439]
[1766173789223,0.00582794,88121.0,88105.0,1.07439]
[1766173789433,0.00582794,88121.0,88109.0,0.59606]
[1766173789636,0.00010794,88121.0,88110.0,0.59606]
[1766173790093,0.00010794,88121.0,88111.0,0.60606]
[1766173791774,0.00010794,88121.0,88111.0,0.01]
[1766173792380,0.00572,88124.0,88111.0,0.01]
[1766173792590,0.00572,88124.0,88095.0,0.01816046]
[1766173792591,0.001099,88111.0,88098.0,0.01]
[1766173792790,0.001099,88111.0,88100.0,0.01]
[1766173793175,0.00572,88115.0,88100.0,0.01]
[1766173793378,0.00572,88115.0,88100.0,0.60606]
[1766173793577,0.00572,88115.0,88101.0,0.47833]
[1766173793779,0.00572,88115.0,88107.0,1.07439]
[1766173793980,0.00572,88115.0,88109.0,0.59606]
[1766173795010,0.41978,88125.0,88109.0,0.59606]
[1766173795288,0.4255,88132.0,88116.0,0.47833]
[1766173795460,0.4255,88132.0,88117.0,0.59606]
[1766173795821,0.00024768,88121.0,88117.0,0.59606]
[1766173798987,0.00024768,88121.0,88116.0,0.48405]
[1766173799205,0.00024768,88121.0,88116.0,0.00572]
[1766173799432,0.001099,88116.0,88113.0,0.00572]
[1766173799842,0.42002768,88121.0,88113.0,0.00572]
[1766173800068,0.00572,88132.0,88113.0,0.00572]
[1766173800290,0.01309288,88131.0,88113.0,0.00572]
[1766173800502,0.00572,88132.0,88113.0,0.59606]
[1766173801546,0.77470128,88130.0,88112.0,0.01]
[1766173801803,0.77470128,88130.0,88112.0,0.01572]
[1766173801942,0.85175427,88130.0,88112.0,0.01]
[1766173802144,0.85175427,88130.0,88112.0,0.02816046]
[1766173802611,0.01134713,88128.0,88112.0,0.01]
[1766173802747,0.001099,88112.0,88108.0,0.01]
[1766173802947,0.77470128,88122.0,88108.0,0.01]
[1766173802948,0.00572,88121.0,88108.0,0.01]
[1766173803891,0.00572,88121.0,88106.0,0.01]
[1766173805058,0.00572,88121.0,88106.0,0.60099]
[1766173805898,0.00572,88121.0,88106.0,1.08812]
[1766173806106,0.00572,88121.0,88098.0,0.01010794]
[1766173806107,0.77470128,88116.0,88098.0,0.01010794]
[1766173806318,0.00572,88121.0,88080.0,0.48713]
[1766173806319,0.05674917,88107.0,88080.0,0.48713]
[1766173806526,0.77470128,88110.0,88080.0,0.00010788]
[1766173806527,0.77470128,88090.0,88080.0,0.00010788]
[1766173806725,0.00572,88089.0,88080.0,0.00010788]
[1766173807309,0.0124488,88115.0,88092.0,0.48713]
[1766173807661,0.05116,88114.0,88094.0,0.59099]
[1766173807876,0.01134906,88113.0,88094.0,0.59099]
[1766173808054,0.01134932,88111.0,88094.0,0.59099]
[1766173808262,0.0011,88111.0,88093.0,0.48713]
[1766173808674,0.00572,88110.0,88093.0,0.48713]
[1766173809588,0.0113479,88122.0,88094.0,0.59099]
[1766173809753,0.0113479,88122.0,88088.0,0.01816046]
[1766173809754,0.00572,88121.0,88100.0,0.59099]
[1766173810104,0.00572,88121.0,88103.0,0.48713]
[1766173810253,0.00572,88121.0,88105.0,0.01]
[1766173810842,0.01706803,88121.0,88098.0,0.59099]
[1766173811187,0.01134854,88117.0,88099.0,0.01]
[1766173811404,0.01816046,88115.0,88099.0,0.01]
[1766173811789,0.01134893,88114.0,88099.0,0.01]
[1766173811950,0.01706906,88113.0,88096.0,0.01]
[1766173812174,0.00572,88113.0,88096.0,0.01]
[1766173812374,0.01706906,88113.0,88096.0,0.01]
[1766173812665,0.01827631,88112.0,88096.0,0.01]
[1766173812902,0.01134996,88106.0,88092.0,0.00572]
[1766173813109,0.00572,88105.0,88090.0,0.01]
[1766173813970,0.01707009,88105.0,88090.0,0.01]
[1766173814204,0.01707009,88105.0,88089.0,0.01]
[1766173814423,0.00572,88105.0,88089.0,0.01]
[1766173814628,0.00572,88105.0,88091.0,0.01]
[1766173815289,0.01134751,88125.0,88094.0,0.60901]
[1766173815548,0.04544,88125.0,88110.0,0.60901]
[1766173815770,0.04544,88125.0,88111.0,0.60901]
[1766173815914,0.04544,88125.0,88111.0,1.06944135]
[1766173816534,0.04544,88125.0,88109.0,0.00572]
[1766173816724,0.04554786,88125.0,88109.0,0.00572]
[1766173816932,0.05415691,88125.0,88109.0,0.00572]
[1766173817129,0.00871691,88125.0,88109.0,0.46704]
[1766173817330,0.00010786,88125.0,88109.0,0.46704]
[1766173818443,0.00010786,88125.0,88109.0,0.00572]
[1766173818638,0.01134777,88123.0,88109.0,0.00572]
[1766173818976,0.00010786,88125.0,88109.0,0.00572]
[1766173818977,0.01145537,88125.0,88109.0,0.00572]
[1766173819115,0.00010786,88125.0,88109.0,0.00572]
[1766173819318,0.01542295,88124.0,88109.0,0.00572]
[1766173819552,0.00010786,88125.0,88109.0,0.00572]
[1766173819699,0.00010786,88125.0,88110.0,1.29107829]
[1766173819903,0.00572,88124.0,88112.0,0.46132]
[1766173820099,0.00572,88124.0,88113.0,0.60901]
[1766173820580,0.01134687,88130.0,88113.0,0.60901]
[1766173820741,0.00572,88129.0,88113.0,0.60911786]
[1766173821107,0.01134635,88134.0,88116.0,0.46132]
[1766173821242,0.01134623,88135.0,88117.0,1.07033]
[1766173821602,0.01134674,88131.0,88113.0,0.00010786]
[1766173821993,0.01134661,88132.0,88113.0,0.00010786]
[1766173822234,0.01134661,88132.0,88114.0,0.60901]
[1766173822443,0.01134687,88130.0,88114.0,0.60901]
[1766173822769,0.01134687,88130.0,88113.0,0.46142786]
[1766173822770,0.01134648,88133.0,88115.0,0.46132]
[1766173822976,0.01134674,88131.0,88113.0,0.00010786]
[1766173823191,0.0113461,88136.0,88113.0,0.00010786]
[1766173823401,0.00572,88135.0,88113.0,0.00010786]
[1766173823618,0.01816046,88149.0,88114.0,1.07033]
[1766173823851,0.27494396,88154.0,88139.0,1.29107829]
[1766173823852,0.03044396,88154.0,88139.0,1.29107829]
[1766173824058,0.03044396,88154.0,88149.0,0.001099]
[1766173824290,0.01134159,88171.0,88149.0,0.001099]
[1766173824291,0.0002,88200.0,88151.0,0.05001839]
[1766173824651,0.01133876,88193.0,88188.0,0.01816046]
[1766173824835,0.00409545,88199.0,88182.0,0.60781]
[1766173825051,0.00409545,88199.0,88180.0,0.00199998]
[1766173825268,0.00036009,88199.0,88188.0,0.01816046]
[1766173825450,0.00572,88198.0,88182.0,0.60781]
[1766173825695,0.01705812,88198.0,88182.0,0.60781]
[1766173825899,0.06803182,88194.0,88180.0,0.00099999]
[1766173826110,0.01133863,88194.0,88180.0,0.00099999]
[1766173826322,0.00572,88193.0,88180.0,0.00199998]
[1766173827179,0.00572,88193.0,88188.0,0.01816046]
[1766173829385,0.00572,88194.0,88188.0,0.01816046]
[1766173829715,0.00572,88194.0,88180.0,0.00099999]
[1766173830164,0.00572,88194.0,88179.0,0.01]
[1766173830165,0.00185635,88181.0,88179.0,0.01]
[1766173830398,0.00572,88194.0,88181.0,0.001099]
[1766173830865,0.01133966,88186.0,88168.0,0.01816046]
[1766173831080,0.05669616,88190.0,88170.0,0.00199998]
[1766173831081,0.00572,88185.0,88170.0,0.00199998]
[1766173831295,0.00036009,88199.0,88184.0,0.01816046]
[1766173831517,0.01133504,88222.0,88201.0,0.01]
[1766173831754,0.42764693,88240.0,88210.0,0.00070393]
[1766173831999,0.04544,88241.0,88210.0,0.00070393]
[1766173832000,0.07485,88220.0,88210.0,0.00070393]
[1766173832210,0.07485,88220.0,88210.0,0.00040785]
[1766173832421,0.00572,88219.0,88210.0,0.00011179]
[1766173832627,0.00572,88218.0,88210.0,0.00099999]
[1766173832837,0.00572,88218.0,88203.0,0.01]
[1766173833046,0.06239814,88218.0,88203.0,0.01]
[1766173833275,0.01133696,88207.0,88200.0,0.00099999]
[1766173833517,0.01133696,88207.0,88170.0,0.02]
[1766173833518,0.01133761,88202.0,88178.0,0.00572]
[1766173833934,0.06374,88203.0,88178.0,0.00572]
[1766173834184,0.06374,88203.0,88183.0,0.60781]
[1766173835496,0.06374,88203.0,88178.0,0.00572]
[1766173835497,0.01133773,88201.0,88179.0,0.01]
[1766173835725,0.06196543,88203.0,88184.0,0.01]
[1766173835929,0.01133761,88202.0,88184.0,0.01]
[1766173836134,0.07330291,88203.0,88184.0,0.01]
[1766173836135,0.06196543,88203.0,88184.0,0.01]
[1766173836564,0.06240603,88206.0,88184.0,0.01]
[1766173836565,0.01133799,88199.0,88184.0,0.01]
[1766173836796,0.01133799,88199.0,88173.0,0.47345]
[1766173836797,0.01133928,88189.0,88169.0,0.01]
[1766173837026,0.00572,88188.0,88169.0,0.01]
[1766173837236,0.01133953,88187.0,88169.0,0.01]
[1766173837445,0.01705941,88188.0,88168.0,0.59693]
[1766173837654,0.00572,88188.0,88168.0,0.59693]
[1766173838083,0.00582789,88188.0,88168.0,0.59693]
[1766173838533,0.00582789,88188.0,88164.0,0.01816046]
[1766173838534,0.06197,88182.0,88164.0,0.01816046]
[1766173838743,0.06197,88180.0,88164.0,0.01816046]
[1766173838958,0.00572,88179.0,88164.0,0.01816046]
[1766173839171,0.00572,88179.0,88162.0,0.01]
[1766173839378,0.00572,88179.0,88162.0,0.60121]
[1766173839840,0.00572,88179.0,88163.0,0.02816046]
[1766173841097,0.00572,88179.0,88162.0,0.01]
[1766173841408,0.00572,88179.0,88140.0,0.59121]
[1766173841409,0.01134288,88161.0,88140.0,0.59121]
[1766173841555,0.00572,88160.0,88140.0,0.59121]
[1766173841767,0.01134327,88158.0,88140.0,0.59121]
[1766173841974,0.01134339,88157.0,88140.0,0.59121]
[1766173842176,0.01134327,88158.0,88140.0,0.59121]
[1766173842384,0.01134339,88157.0,88137.0,0.00572]
[1766173842739,0.01134339,88157.0,88137.0,0.00036009]
[1766173842740,0.01134391,88153.0,88137.0,0.00036009]
[1766173842873,0.00572,88152.0,88137.0,0.00036009]
[1766173843947,0.01134417,88151.0,88137.0,0.00036009]
[1766173844479,0.00572,88152.0,88137.0,0.00036009]
[1766173845132,0.01706404,88152.0,88137.0,0.00036009]
[1766173845338,0.01134417,88151.0,88137.0,0.00036009]
[1766173845605,0.01706404,88152.0,88137.0,0.00036009]
[1766173846226,0.01134429,88150.0,88137.0,0.00036009]
[1766173846631,0.01134442,88149.0,88137.0,0.00036009]
[1766173847092,0.01134429,88150.0,88137.0,0.00036009]
[1766173847257,0.01134417,88151.0,88137.0,0.00036009]
[1766173847734,0.01134429,88150.0,88137.0,0.00036009]
[1766173847953,0.01134417,88151.0,88137.0,0.00036009]
[1766173848170,0.01706404,88152.0,88096.0,0.08644669]
[1766173848171,0.01134764,88124.0,88096.0,0.08644669]
[1766173848375,0.01816046,88101.0,88096.0,0.08655458]
[1766173848582,0.004621,88100.0,88096.0,0.08655458]
[1766173848711,0.004621,88100.0,88096.0,0.00010789]
[1766173848913,0.01135099,88098.0,88072.0,0.47345]
[1766173849236,0.004621,88100.0,88035.0,1.06466]
[1766173849237,0.001099,88072.0,88035.0,1.06466]
[1766173849433,0.03633123,88058.0,88040.0,1.29040862]
[1766173849618,0.00572,88057.0,88040.0,1.29040862]
[1766173849820,0.00572,88057.0,88035.0,0.47345]
[1766173849821,0.03633123,88044.0,88035.0,0.47345]
[1766173850019,0.03633123,88044.0,88030.0,1.29040862]
[1766173850218,0.03633123,88044.0,88028.0,0.00572]
[1766173850455,0.03633123,88044.0,88022.0,0.0004]
[1766173850686,0.03633123,88044.0,88030.0,1.29040862]
[1766173850875,0.00572,88047.0,88031.0,0.03300558]
[1766173851083,0.03633123,88043.0,88030.0,1.29040862]
[1766173851289,0.03633123,88043.0,88024.0,0.48345]
[1766173851439,0.03633123,88043.0,88030.0,1.29040862]
[1766173851794,0.03633123,88043.0,88025.0,0.01]
[1766173852183,0.03633123,88043.0,88024.0,1.06466]
[1766173852365,0.03633123,88043.0,88025.0,0.01]
[1766173854461,0.0181748,88034.0,88022.0,0.0004]
[1766173854668,0.00572,88033.0,88022.0,0.0004]
[1766173855300,0.00572,88032.0,88022.0,0.0004]
[1766173855721,0.00572,88032.0,88031.0,0.00080648]
[1766173855912,0.00572,88032.0,88031.0,4.8e-07]
[1766173856541,0.00572,88032.0,88010.0,1.29040862]
[1766173856542,0.00572,88032.0,88000.0,0.04544]
[1766173856740,0.0181748,88014.0,87998.0,0.59131]
[1766173856946,0.0238948,88014.0,87998.0,0.59131]
[1766173857127,0.0230888,88014.0,87999.0,0.01]
[1766173857897,0.0230888,88014.0,88009.0,0.00050788]
[1766173859168,0.0230888,88014.0,87995.0,0.47385]
[1766173859374,0.0230888,88014.0,87984.0,0.05001839]
[1766173859375,8.304e-05,87995.0,87994.0,0.00015625]
[1766173859573,8.304e-05,87995.0,87994.0,0.00022585]
[1766173859574,0.00572,87995.0,87994.0,0.00022585]
[1766173860133,0.00572,87995.0,87994.0,0.00014185]
[1766173860559,0.00572,87995.0,87994.0,1e-08]
[1766173860764,0.0181748,87995.0,87994.0,1e-08]
[1766173860926,0.0227958,87995.0,87994.0,1e-08]
[1766173861764,0.0170758,87995.0,87994.0,1e-08]
[1766173861996,0.0682758,87995.0,87994.0,1e-08]
[1766173862942,0.0170758,87995.0,87994.0,1e-08]
[1766173863063,0.0181748,87998.0,87994.0,1e-08]
[1766173863257,0.00572,87997.0,87994.0,0.00114767]
[1766173863467,0.22724099,88013.0,87994.0,0.00114767]
[1766173863468,1.29040862,88040.0,87996.0,0.00108562]
[1766173863667,0.0181748,88013.0,88000.0,1.29040862]
[1766173863874,0.0238948,88012.0,88000.0,1.29040862]
[1766173864068,0.0238948,88012.0,87999.0,0.01]
[1766173864069,0.00572,88011.0,87999.0,0.01]
[1766173864298,0.01136002,88028.0,88000.0,1.88361862]
[1766173864548,0.0181748,88014.0,87999.0,0.49942]
[1766173864797,0.00572,88013.0,87999.0,0.01]
[1766173865007,0.0181748,88000.0,87994.0,1e-08]
[1766173865152,0.0181748,88000.0,87994.0,0.01000001]
[1766173865352,0.00572,88006.0,87994.0,0.01000001]
[1766173866128,0.0181748,88000.0,87994.0,1e-08]
[1766173866735,0.00572,87999.0,87994.0,1e-08]
[1766173866957,0.05681139,88011.0,87994.0,1e-08]
[1766173866958,0.0009982,88040.0,87994.0,1e-08]
[1766173867157,0.45426289,88055.0,88000.0,1.29040862]
[1766173867158,0.00572,88013.0,88000.0,1.29040862]
[1766173867394,0.05679899,88030.0,88000.0,1.29040862]
[1766173867395,0.00572,88012.0,88000.0,1.29040862]
[1766173867557,0.00572,88012.0,87994.0,1e-08]
[1766173867558,0.00572,88012.0,87994.0,0.60321001]
[1766173868497,0.0238948,88011.0,87997.0,1.08263]
[1766173868720,0.00572,88011.0,87998.0,0.59321]
[1766173868944,0.00572,88011.0,87994.0,0.01572001]
[1766173868945,0.00572,88016.0,88013.0,0.00055832]
[1766173869165,0.00572,88018.0,88007.0,1.08263]
[1766173869603,0.00572,88018.0,88007.0,0.48942]
[1766173870044,0.00572,88017.0,88002.0,1.08263]
[1766173870192,0.00572,88017.0,88007.0,1.29040862]
[1766173870511,0.0181748,88019.0,88007.0,1.29040862]
[1766173871786,0.0181748,88019.0,88005.0,0.01]
[1766173872872,0.0181748,88018.0,88005.0,0.60321]
[1766173873085,0.00572,88019.0,88004.0,1.08263]
[1766173873296,0.00572,88022.0,88005.0,0.01]
[1766173873508,0.0181748,88018.0,88006.0,0.48942]
[1766173873718,0.0181748,88018.0,88007.0,0.59321]
[1766173873928,0.0181748,88018.0,88008.0,1.29040862]
[1766173874319,0.0181748,88018.0,88007.0,0.59321]
[1766173874320,0.0181748,88018.0,88015.0,0.0004963]
[1766173874546,0.0181748,88018.0,88007.0,0.59321]
[1766173875527,0.01135911,88035.0,88005.0,0.01]
[1766173875528,0.05001839,88060.0,88018.0,0.000496]
[1766173875772,0.01916045,88080.0,88018.0,0.000496]
[1766173875773,0.0512,88047.0,88025.0,0.59321]
[1766173876021,0.0512,88047.0,88020.0,1.29040862]
[1766173876022,0.01817,88052.0,88030.0,1.29040862]
[1766173876274,0.00572,88047.0,88031.0,1.08263]
[1766173876513,0.00572,88047.0,88024.0,0.00572]
[1766173876746,0.00572,88047.0,88031.0,1.08263]
[1766173876977,0.006079,88047.0,88032.0,0.59321]
[1766173877221,0.01743657,88047.0,88032.0,0.59321]
[1766173877648,0.01135782,88045.0,88031.0,0.48942]
[1766173877873,0.0081748,88034.0,88031.0,0.48942]
[1766173878119,0.01135782,88045.0,88031.0,0.48942]
[1766173878587,0.01135782,88045.0,88025.0,0.01]
[1766173878588,0.01135769,88046.0,88025.0,0.01]
[1766173878834,0.01135795,88044.0,88030.0,0.88178327]
[1766173879067,0.0181748,88034.0,88025.0,0.01]
[1766173879306,0.0181748,88034.0,88010.0,0.88178327]
[1766173879568,0.01817,88032.0,88018.0,0.01]
[1766173879809,0.00572,88036.0,88032.0,0.001099]
[1766173880053,0.0181748,88034.0,88032.0,0.001099]
[1766173880287,0.0181748,88034.0,88027.0,0.01]
[1766173881022,0.00572,88043.0,88034.0,0.576759]
[1766173881251,0.00572,88043.0,88034.0,0.001099]
[1766173881482,0.00572,88043.0,88029.0,0.46294]
[1766173881483,0.00572,88043.0,88029.0,1.0386]
[1766173882254,0.0181748,88033.0,88025.0,0.01]
[1766173882490,0.0181748,88032.0,88025.0,0.01]
[1766173883916,0.03634,88042.0,88032.0,0.001099]
[1766173884094,0.0181748,88048.0,88032.0,0.001099]
[1766173884501,0.00572,88046.0,88027.0,0.57566]
[1766173884705,0.03634,88043.0,88025.0,0.01]
[1766173885941,0.01135834,88041.0,88025.0,0.01]
[1766173886151,0.06250855,88046.0,88007.0,0.00024853]
[1766173886152,0.0181748,88034.0,88014.0,0.50842]
[1766173886308,0.03634,88032.0,88015.0,0.01572]
[1766173886508,0.03634,88032.0,88016.0,0.01]
[1766173889223,0.03695,88032.0,88016.0,0.01]
[1766173889422,0.03634,88032.0,88016.0,0.01]
[1766173890473,0.00572,88031.0,88018.0,0.01]
[1766173890678,0.0181748,88034.0,88018.0,0.01]
[1766173890878,0.00572,88033.0,88024.0,0.46294]
[1766173891085,0.00572,88037.0,88024.0,0.46294]
[1766173891290,0.00572,88037.0,87986.0,0.04548]
[1766173891291,0.04753,88012.0,87986.0,0.04548]
[1766173891522,0.0181748,87996.0,87985.0,0.57606]
[1766173891867,0.0181748,87996.0,87985.0,0.0004]
[1766173892076,0.0238948,87996.0,87985.0,0.0004]
[1766173892273,0.0238948,87996.0,87981.0,0.0004]
[1766173892274,0.0004,87985.0,87981.0,0.0004]
[1766173892480,0.05723063,87981.0,87960.0,0.57566]
[1766173892688,0.05723063,87981.0,87960.0,0.57572961]
[1766173892689,0.01136621,87980.0,87960.0,0.57572961]
[1766173892901,0.00572,87979.0,87960.0,0.57572961]
[1766173893222,0.00572,87979.0,87961.0,0.01]
[1766173893874,0.0181748,87967.0,87960.0,6.961e-05]
[1766173894074,0.0181748,87967.0,87956.0,0.01]
[1766173894246,6.9e-05,87960.0,87956.0,5.323e-05]
[1766173894469,0.00572,87963.0,87955.0,0.00378323]
[1766173894673,0.0181748,87982.0,87955.0,0.61263647]
[1766173894851,0.04548,87976.0,87957.0,0.6088]
[1766173895037,0.00572,87975.0,87957.0,0.6088]
[1766173895724,0.01136621,87980.0,87957.0,0.6088]
[1766173895911,0.0113666,87977.0,87957.0,0.6088]
[1766173896426,0.01136686,87975.0,87957.0,0.6088]
[1766173896617,0.01136712,87973.0,87957.0,0.6088]
[1766173896818,0.02954257,87968.0,87955.0,0.00383647]
[1766173897025,0.0181748,87968.0,87955.0,0.00383647]
[1766173897393,0.0181748,87968.0,87967.0,0.00063108]
[1766173897599,0.0181748,87968.0,87967.0,8e-08]
[1766173897804,0.0238948,87968.0,87967.0,8e-08]
[1766173900298,0.0181748,87968.0,87967.0,8e-08]
[1766173900779,0.0238948,87968.0,87967.0,8e-08]
[1766173902408,0.0232638,87968.0,87967.0,8e-08]
[1766173903260,0.0175438,87968.0,87967.0,8e-08]
[1766173903574,0.00572,87968.0,87967.0,8e-08]
[1766173907877,0.01,87981.0,87967.0,8e-08]
[1766173908077,0.0181748,87968.0,87958.0,0.88178327]
[1766173908295,0.00572,87969.0,87958.0,0.88178327]
[1766173909074,0.00572,87969.0,87955.0,0.00383647]
[1766173909274,0.0181748,87968.0,87955.0,0.00383647]
[1766173909651,0.00572,87969.0,87955.0,0.00383647]
[1766173910712,0.0181748,87968.0,87955.0,0.00383647]
[1766173911064,0.00572,87974.0,87956.0,0.6088]
[1766173911687,0.01136712,87973.0,87955.0,0.00955647]
[1766173911855,0.01136725,87972.0,87955.0,0.00955647]
[1766173912050,0.01136712,87973.0,87955.0,0.00955647]
[1766173912454,0.00572,87974.0,87955.0,0.00955647]
[1766173912829,0.01708699,87974.0,87955.0,0.00383647]
[1766173913038,0.01136789,87967.0,87955.0,0.00383647]
[1766173913234,0.00572,87966.0,87955.0,0.00383647]
[1766173914165,0.01708802,87966.0,87955.0,0.00383647]
[1766173914520,0.01136815,87965.0,87955.0,0.00383647]
[1766173914724,0.0113688,87960.0,87955.0,0.00273747]
[1766173914923,0.0113688,87960.0,87945.0,0.0004]
[1766173914924,0.0682202,87951.0,87948.0,1e-08]
[1766173915126,0.0181748,87949.0,87948.0,5.322e-05]
[1766173915331,0.06822212,87948.0,87945.0,1e-08]
[1766173915560,0.06832966,87948.0,87945.0,1e-08]
[1766173915939,0.01137151,87939.0,87936.0,1e-08]
[1766173916141,0.01137151,87939.0,87934.0,1e-08]
[1766173916142,0.05686018,87935.0,87934.0,1e-08]
[1766173916341,0.04552,87935.0,87906.0,0.0004]
[1766173916545,0.0181748,87921.0,87906.0,0.0004]
[1766173916763,0.0227958,87921.0,87906.0,0.0004]
[1766173917254,0.0113741,87919.0,87906.0,0.0004]
[1766173917475,0.0181748,87907.0,87906.0,0.0004]
[1766173917705,0.0227958,87921.0,87906.0,0.00076048]
[1766173917902,0.0181748,87907.0,87906.0,0.00076048]
[1766173918327,0.88459672,87940.0,87906.0,0.00076048]
[1766173918328,0.01,87934.0,87906.0,0.00076048]
[1766173918567,0.0181748,87935.0,87910.0,0.88459672]
[1766173918568,0.05124,87933.0,87910.0,0.88459672]
[1766173918785,0.00572,87932.0,87910.0,0.88459672]
[1766173919128,0.0181748,87935.0,87931.0,0.00111808]
[1766173919334,0.00572,87934.0,87910.0,0.88459672]
[1766173919729,0.0181748,87932.0,87910.0,0.88459672]
[1766173919963,0.0181748,87932.0,87920.0,0.88459672]
[1766173920167,0.0181748,87932.0,87911.0,0.01]
[1766173920326,0.00572,87931.0,87911.0,0.01]
[1766173920933,0.0181748,87932.0,87920.0,0.88459672]
[1766173921158,0.00572,87939.0,87920.0,0.88459672]
[1766173921370,0.0181748,87933.0,87919.0,0.00572]
[1766173921516,0.0181748,87933.0,87920.0,0.88459672]
[1766173922606,0.00572,87939.0,87920.0,0.88459672]
[1766173923238,0.00572525,87938.0,87920.0,0.88459672]
[1766173923706,0.00572525,87938.0,87928.0,0.88459672]
[1766173923923,0.0181748,87966.0,87937.0,0.6088]
[1766173924121,0.00572,87965.0,87950.0,0.88459672]
[1766173924462,0.00572,87965.0,87940.0,0.88459672]
[1766173924661,0.00572,87965.0,87942.0,0.62295]
[1766173924885,0.00572,87965.0,87959.0,0.00024874]
[1766173925059,0.00582758,87965.0,87959.0,7.4e-07]
[1766173925903,0.01719573,87965.0,87959.0,7.4e-07]
[1766173926105,0.00582758,87965.0,87959.0,7.4e-07]
[1766173926464,0.01719573,87965.0,87959.0,7.4e-07]
[1766173926870,0.0181748,87962.0,87959.0,7.4e-07]
[1766173927309,0.00010758,87965.0,87959.0,7.4e-07]
[1766173928748,0.0181748,87964.0,87959.0,7.4e-07]
[1766173929179,0.0181748,87964.0,87936.0,0.01]
[1766173929382,0.0181748,87964.0,87945.0,0.01]
[1766173931415,0.0181748,87963.0,87950.0,0.88459672]
[1766173931802,0.0181748,87963.0,87945.0,0.63295]
[1766173931978,0.001099,87950.0,87945.0,0.01]
[1766173932141,0.0181748,87963.0,87945.0,0.01]
[1766173932593,0.0181748,87963.0,87945.0,0.63295]
[1766173934512,0.0181748,87963.0,87946.0,0.4581]
[1766173934943,0.00010758,87965.0,87948.0,0.4581]
[1766173935088,0.22730593,87988.0,87960.0,0.63295]
[1766173935089,0.00572,87980.0,87960.0,0.63295]
[1766173935296,0.00572,87980.0,87962.0,0.01]
[1766173935695,0.00572,87980.0,87962.0,1.09105]
[1766173935897,0.00572,87980.0,87962.0,0.4681]
[1766173936251,0.00572,87980.0,87966.0,0.01]
[1766173936470,0.00572,87980.0,87963.0,0.01]
[1766173936693,0.0181748,87981.0,87963.0,0.63295]
[1766173936940,0.0238948,87981.0,87964.0,0.01]
[1766173938415,0.01136634,87979.0,87963.0,0.01]
[1766173938570,0.0181748,87967.0,87963.0,0.01]
[1766173939176,0.001099,87963.0,87954.0,0.4581]
[1766173939515,0.0181748,87967.0,87955.0,0.01572]
[1766173939861,0.0181748,87980.0,87958.0,0.57931]
[1766173940085,0.0001,87986.0,87962.0,0.4987]
[1766173940294,0.0001,87986.0,87968.0,0.01]
[1766173940295,0.0181748,87982.0,87968.0,0.01]
[1766173941413,0.0181748,87982.0,87964.0,0.01]
[1766173941827,0.0001,87981.0,87964.0,0.01]
[1766173942080,0.0181748,87968.0,87963.0,0.00572]
[1766173942798,0.0001,87981.0,87963.0,0.00572]
[1766173943249,0.0181748,87968.0,87963.0,0.00572]
[1766173944451,0.0001,87979.0,87963.0,0.00572]
[1766173944664,0.0141113,87979.0,87963.0,0.00572]
[1766173945081,0.0181748,87968.0,87963.0,0.00572]
[1766173945287,0.0001,87979.0,87963.0,0.58503]
[1766173945502,0.00572,87978.0,87964.0,0.57931]
[1766173947702,0.0181748,87982.0,87964.0,0.57931]
[1766173947939,0.04552,88001.0,87975.0,0.4887]
[1766173948095,0.0181748,87993.0,87981.0,1.06801]
[1766173948357,0.0181748,87993.0,87982.0,0.00572]
[1766173948937,0.0181748,87993.0,87982.0,0.004621]
[1766173949342,0.01828286,87993.0,87982.0,0.004621]
[1766173960118,0.01828286,87993.0,87961.0,0.06118543]
[1766173960119,1.30721333,87992.0,87970.0,0.01]
[1766173960319,0.0181748,87966.0,87959.0,0.00572]
[1766173960518,0.0181748,87966.0,87960.0,0.00572]
[1766173962307,0.0181748,87974.0,87960.0,0.00572]
[1766173964080,0.00572,87978.0,87974.0,0.001099]
[1766173964283,0.0181748,87975.0,87974.0,0.001099]
[1766173964645,0.0181748,87975.0,87966.0,0.48042]
[1766173966260,0.0181748,87975.0,87963.0,0.60684]
[1766173967672,0.2445,88006.0,87975.0,0.001099]
[1766173967879,0.0304459,88005.0,87981.0,0.60684]
[1766173968077,0.0181748,87996.0,87982.0,0.48042]
[1766173968396,0.0181748,87996.0,87983.0,0.61256]
[1766173969889,0.0181748,87996.0,87983.0,0.00572]
[1766173970922,0.01136479,87991.0,87983.0,0.00572]
[1766173971121,0.01136531,87987.0,87971.0,0.00572]
[1766173971294,0.0181748,87975.0,87971.0,0.00572]
[1766173972116,0.0181748,87975.0,87964.0,0.00572]
[1766173972345,0.0181748,87975.0,87961.0,0.01]
[1766173972346,0.0238948,87975.0,87961.0,0.01]
[1766173975441,4.8e-06,87973.0,87961.0,0.01]
[1766173975605,0.0181748,87998.0,87975.0,0.001099]
[1766173975920,0.0181748,87998.0,87965.0,0.01]